[Event "Titled Tuesday Blitz January 18 2022"]
[White "Zhigalko, Sergei"]
[Black "Tabatabaei, M. Amin"]
[WhiteFideId "13502956"]
[BlackFideId "12521213"]
[WhiteElo "2662"]
[BlackElo "2585"]
[Result "1/2-1/2"]
[Round "05"]
[TimeControl "180+1"]
[Date "2022.01.18"]
[WhiteClock "0:00:05"]
[BlackClock "0:00:41"]

1. e4 {[%clk 0:03:00]}  e5 {[%clk 0:02:54]} 2. Nf3 {[%clk 0:03:01]}  Nc6 {[%clk 0:02:54]} 3. Bc4 {[%clk 0:02:58]}  Bc5 {[%clk 0:02:53]} 4. b4 {[%clk 0:02:58]}  Bxb4 {[%clk 0:02:50]} 5. c3 {[%clk 0:02:59]}  Bd6 {[%clk 0:02:44]} 6. d4 {[%clk 0:02:58]}  Nf6 {[%clk 0:02:44]} 7. O-O {[%clk 0:02:58]}  O-O {[%clk 0:02:45]} 8. Re1 {[%clk 0:02:58]}  a6 {[%clk 0:02:44]} 9. Bg5 {[%clk 0:02:45]}  h6 {[%clk 0:02:44]} 10. Bh4 {[%clk 0:02:45]}  Re8 {[%clk 0:02:44]} 11. Nbd2 {[%clk 0:02:45]}  b5 {[%clk 0:02:43]} 12. Bd5 {[%clk 0:02:19]}  Be7 {[%clk 0:02:32]} 13. Bxc6 {[%clk 0:02:09]}  dxc6 {[%clk 0:02:33]} 14. Nxe5 {[%clk 0:02:10]}  Bb7 {[%clk 0:02:32]} 15. Qb3 {[%clk 0:02:09]}  Rf8 {[%clk 0:02:29]} 16. Ng6 {[%clk 0:02:09]}  Re8 {[%clk 0:02:04]} 17. Nxe7+ {[%clk 0:01:41]}  Qxe7 {[%clk 0:02:01]} 18. e5 {[%clk 0:01:41]}  g5 {[%clk 0:02:01]} 19. exf6 {[%clk 0:00:38]}  Qxe1+ {[%clk 0:02:02]} 20. Rxe1 {[%clk 0:00:39]}  Rxe1+ {[%clk 0:02:02]} 21. Nf1 {[%clk 0:00:40]}  gxh4 {[%clk 0:01:51]} 22. Qc2 {[%clk 0:00:26]}  Rae8 {[%clk 0:01:05]} 23. Qd2 {[%clk 0:00:15]}  Kh7 {[%clk 0:01:05]} 24. Qd3+ {[%clk 0:00:15]}  Kh8 {[%clk 0:01:05]} 25. Qd2 {[%clk 0:00:07]}  Kh7 {[%clk 0:01:05]} 26. Qd3+ {[%clk 0:00:07]}  Kg8 {[%clk 0:00:51]} 27. Qd2 {[%clk 0:00:05]}  Kh7 {[%clk 0:00:41]} 1/2-1/2


[Site "https://www.chess.com"]

[Event "Titled Tuesday Blitz January 18 2022"]
[White "Aydin, Gulenay"]
[Black "Sorensen, Hampus"]
[WhiteFideId "34557431"]
[BlackFideId "8703884"]
[WhiteElo "1429"]
[BlackElo "2262"]
[Result "1-0"]
[Round "06"]
[TimeControl "180+1"]
[Date "2022.01.18"]
[WhiteClock "0:00:22"]
[BlackClock "0:00:01"]

1. e4 {[%clk 0:03:00]}  e6 {[%clk 0:02:56]} 2. d4 {[%clk 0:03:00]}  d5 {[%clk 0:02:57]} 3. Nd2 {[%clk 0:03:01]}  c5 {[%clk 0:02:53]} 4. Ngf3 {[%clk 0:03:00]}  Nc6 {[%clk 0:02:43]} 5. exd5 {[%clk 0:02:48]}  Qxd5 {[%clk 0:02:44]} 6. Bc4 {[%clk 0:02:47]}  Qh5 {[%clk 0:02:40]} 7. dxc5 {[%clk 0:02:42]}  Bxc5 {[%clk 0:02:38]} 8. Ne4 {[%clk 0:02:42]}  Be7 {[%clk 0:02:37]} 9. Nd6+ {[%clk 0:02:35]}  Bxd6 {[%clk 0:02:36]} 10. Qxd6 {[%clk 0:02:36]}  Qg4 {[%clk 0:02:22]} 11. Bb5 {[%clk 0:02:17]}  Ne7 {[%clk 0:02:17]} 12. O-O {[%clk 0:02:14]}  O-O {[%clk 0:02:17]} 13. Bg5 {[%clk 0:02:03]}  Nf5 {[%clk 0:02:09]} 14. Qd2 {[%clk 0:01:57]}  h6 {[%clk 0:01:42]} 15. Bf4 {[%clk 0:01:52]}  Rd8 {[%clk 0:01:40]} 16. h3 {[%clk 0:01:46]}  Qg6 {[%clk 0:01:20]} 17. Qc3 {[%clk 0:01:40]}  Nfd4 {[%clk 0:01:14]} 18. Nxd4 {[%clk 0:01:38]}  Nxd4 {[%clk 0:01:14]} 19. Rad1 {[%clk 0:01:26]}  Qf6 {[%clk 0:01:07]} 20. Qc7 {[%clk 0:00:47]}  Rd5 {[%clk 0:00:33]} 21. Bc4 {[%clk 0:00:24]}  Rd7 {[%clk 0:00:24]} 22. Qe5 {[%clk 0:00:24]}  Qxe5 {[%clk 0:00:24]} 23. Bxe5 {[%clk 0:00:25]}  Nc6 {[%clk 0:00:17]} 24. Bc3 {[%clk 0:00:24]}  Kf8 {[%clk 0:00:14]} 25. Bb5 {[%clk 0:00:24]}  f6 {[%clk 0:00:12]} 26. Bb4+ {[%clk 0:00:23]}  Kf7 {[%clk 0:00:11]} 27. Bc3 {[%clk 0:00:23]}  a6 {[%clk 0:00:10]} 28. Bc4 {[%clk 0:00:23]}  b5 {[%clk 0:00:09]} 29. Bb3 {[%clk 0:00:23]}  Raa7 {[%clk 0:00:06]} 30. f4 {[%clk 0:00:23]}  g6 {[%clk 0:00:05]} 31. g4 {[%clk 0:00:22]}  Rxd1 {[%clk 0:00:05]} 32. Rxd1 {[%clk 0:00:23]}  Ke7 {[%clk 0:00:04]} 33. Re1 {[%clk 0:00:23]}  a5 {[%clk 0:00:03]} 34. a3 {[%clk 0:00:21]}  b4 {[%clk 0:00:02]} 35. axb4 {[%clk 0:00:21]}  axb4 {[%clk 0:00:03]} 36. Bd2 {[%clk 0:00:22]}  Bd7 {[%clk 0:00:02]} 37. Be3 {[%clk 0:00:22]}  f5 {[%clk 0:00:02]} 38. Bxa7 {[%clk 0:00:22]}  Nxa7 {[%clk 0:00:02]} 39. gxf5 {[%clk 0:00:23]}  gxf5 {[%clk 0:00:02]} 40. Kf2 {[%clk 0:00:23]}  Nc6 {[%clk 0:00:03]} 41. Ke3 {[%clk 0:00:22]}  Na5 {[%clk 0:00:01]} 42. Ra1 {[%clk 0:00:22]} 1-0


[Site "https://www.chess.com"]

[Event "Titled Tuesday Blitz January 18 2022"]
[White "Bacrot, Etienne"]
[Black "Suder, Jakub"]
[WhiteFideId "605506"]
[BlackFideId "1195310"]
[WhiteElo "2673"]
[BlackElo "2058"]
[Result "1-0"]
[Round "06"]
[TimeControl "180+1"]
[Date "2022.01.18"]
[WhiteClock "0:00:17"]
[BlackClock "0:00:01"]

1. d4 {[%clk 0:03:00]}  d5 {[%clk 0:03:00]} 2. Bg5 {[%clk 0:03:00]}  c6 {[%clk 0:02:59]} 3. e3 {[%clk 0:02:58]}  Qb6 {[%clk 0:02:57]} 4. Qc1 {[%clk 0:02:56]}  h6 {[%clk 0:02:57]} 5. Bh4 {[%clk 0:02:56]}  e5 {[%clk 0:02:57]} 6. Nf3 {[%clk 0:02:53]}  exd4 {[%clk 0:02:54]} 7. exd4 {[%clk 0:02:52]}  Be7 {[%clk 0:02:53]} 8. Bg3 {[%clk 0:02:35]}  Nf6 {[%clk 0:02:49]} 9. Bd3 {[%clk 0:02:35]}  Bg4 {[%clk 0:02:41]} 10. Nbd2 {[%clk 0:02:29]}  Nbd7 {[%clk 0:02:38]} 11. c3 {[%clk 0:02:28]}  O-O {[%clk 0:02:35]} 12. O-O {[%clk 0:02:25]}  Bxf3 {[%clk 0:02:33]} 13. Nxf3 {[%clk 0:02:24]}  Ne4 {[%clk 0:01:58]} 14. Re1 {[%clk 0:02:24]}  Ndf6 {[%clk 0:01:47]} 15. Be5 {[%clk 0:02:16]}  Rae8 {[%clk 0:01:35]} 16. Qc2 {[%clk 0:02:00]}  Bd6 {[%clk 0:01:29]} 17. h3 {[%clk 0:02:00]}  Re6 {[%clk 0:01:09]} 18. Bxf6 {[%clk 0:01:48]}  Nxf6 {[%clk 0:01:07]} 19. Rxe6 {[%clk 0:01:48]}  fxe6 {[%clk 0:01:08]} 20. Re1 {[%clk 0:01:48]}  Re8 {[%clk 0:01:08]} 21. Bg6 {[%clk 0:01:41]}  Re7 {[%clk 0:01:08]} 22. b4 {[%clk 0:01:35]}  Qc7 {[%clk 0:01:06]} 23. Re3 {[%clk 0:01:31]}  e5 {[%clk 0:01:00]} 24. dxe5 {[%clk 0:01:29]}  Bxe5 {[%clk 0:00:52]} 25. Qf5 {[%clk 0:01:28]}  Ne4 {[%clk 0:00:28]} 26. Qh5 {[%clk 0:01:10]}  Nf6 {[%clk 0:00:13]} 27. Qf5 {[%clk 0:01:09]}  Ne4 {[%clk 0:00:14]} 28. c4 {[%clk 0:00:41]}  Nd6 {[%clk 0:00:06]} 29. Qg4 {[%clk 0:00:27]}  Nxc4 {[%clk 0:00:06]} 30. Re2 {[%clk 0:00:28]}  Bf6 {[%clk 0:00:04]} 31. Rxe7 {[%clk 0:00:27]}  Bxe7 {[%clk 0:00:04]} 32. Qe6+ {[%clk 0:00:27]}  Kh8 {[%clk 0:00:04]} 33. Bd3 {[%clk 0:00:24]}  Qd8 {[%clk 0:00:03]} 34. Qf5 {[%clk 0:00:22]}  Kg8 {[%clk 0:00:02]} 35. Qe6+ {[%clk 0:00:20]}  Kh8 {[%clk 0:00:03]} 36. Nd4 {[%clk 0:00:20]}  Bf6 {[%clk 0:00:01]} 37. Qf5 {[%clk 0:00:19]}  Kg8 {[%clk 0:00:02]} 38. Qe6+ {[%clk 0:00:18]}  Kh8 {[%clk 0:00:01]} 39. Nb3 {[%clk 0:00:17]} 1-0


[Site "https://www.chess.com"]

[Event "Titled Tuesday Blitz January 18 2022"]
[White "Barria Zuniga, Daniel"]
[Black "Guseva, Marina"]
[WhiteFideId "3400816"]
[BlackFideId "4149351"]
[WhiteElo "2414"]
[BlackElo "2232"]
[Result "0-1"]
[Round "06"]
[TimeControl "180+1"]
[Date "2022.01.18"]
[WhiteClock "0:00:08"]
[BlackClock "0:00:12"]

1. d4 {[%clk 0:02:52]}  Nf6 {[%clk 0:02:59]} 2. c4 {[%clk 0:02:52]}  e6 {[%clk 0:02:58]} 3. Nf3 {[%clk 0:02:52]}  b6 {[%clk 0:02:57]} 4. g3 {[%clk 0:02:51]}  Ba6 {[%clk 0:02:56]} 5. Qc2 {[%clk 0:02:51]}  c5 {[%clk 0:02:55]} 6. d5 {[%clk 0:02:47]}  exd5 {[%clk 0:02:54]} 7. cxd5 {[%clk 0:02:48]}  Bb7 {[%clk 0:02:54]} 8. Bg2 {[%clk 0:02:47]}  Nxd5 {[%clk 0:02:54]} 9. O-O {[%clk 0:02:47]}  Nc6 {[%clk 0:02:54]} 10. a3 {[%clk 0:02:46]}  Be7 {[%clk 0:02:50]} 11. Rd1 {[%clk 0:02:46]}  Nc7 {[%clk 0:02:50]} 12. Nc3 {[%clk 0:02:43]}  O-O {[%clk 0:02:46]} 13. e4 {[%clk 0:02:43]}  Ne6 {[%clk 0:02:20]} 14. Be3 {[%clk 0:02:37]}  d6 {[%clk 0:02:19]} 15. Rd2 {[%clk 0:02:36]}  Qb8 {[%clk 0:02:14]} 16. Rad1 {[%clk 0:02:36]}  Rd8 {[%clk 0:02:09]} 17. h4 {[%clk 0:02:34]}  h6 {[%clk 0:02:04]} 18. Nd5 {[%clk 0:02:18]}  Bf8 {[%clk 0:02:03]} 19. b4 {[%clk 0:02:17]}  Ne5 {[%clk 0:01:50]} 20. b5 {[%clk 0:01:42]}  Nxf3+ {[%clk 0:01:05]} 21. Bxf3 {[%clk 0:01:42]}  Bxd5 {[%clk 0:01:03]} 22. Rxd5 {[%clk 0:01:38]}  Nc7 {[%clk 0:01:03]} 23. R5d2 {[%clk 0:01:26]}  a6 {[%clk 0:00:53]} 24. a4 {[%clk 0:01:17]}  axb5 {[%clk 0:00:53]} 25. axb5 {[%clk 0:01:18]}  Ra5 {[%clk 0:00:52]} 26. e5 {[%clk 0:01:15]}  Nxb5 {[%clk 0:00:49]} 27. Bd5 {[%clk 0:01:06]}  Qa7 {[%clk 0:00:36]} 28. e6 {[%clk 0:01:05]}  Nc7 {[%clk 0:00:27]} 29. exf7+ {[%clk 0:01:04]}  Kh8 {[%clk 0:00:27]} 30. Qg6 {[%clk 0:00:59]}  Nxd5 {[%clk 0:00:22]} 31. Rxd5 {[%clk 0:00:59]}  Ra1 {[%clk 0:00:21]} 32. Rxa1 {[%clk 0:00:44]}  Qxa1+ {[%clk 0:00:20]} 33. Kh2 {[%clk 0:00:45]}  Qf6 {[%clk 0:00:20]} 34. Qh5 {[%clk 0:00:44]}  g6 {[%clk 0:00:19]} 35. Qg4 {[%clk 0:00:35]}  Qxf7 {[%clk 0:00:19]} 36. Rd2 {[%clk 0:00:33]}  Re8 {[%clk 0:00:19]} 37. h5 {[%clk 0:00:29]}  gxh5 {[%clk 0:00:18]} 38. Qh3 {[%clk 0:00:28]}  d5 {[%clk 0:00:18]} 39. Rb2 {[%clk 0:00:26]}  d4 {[%clk 0:00:18]} 40. Bf4 {[%clk 0:00:26]}  Qe6 {[%clk 0:00:18]} 41. Qxh5 {[%clk 0:00:25]}  Bg7 {[%clk 0:00:18]} 42. Rxb6 {[%clk 0:00:24]}  Qxb6 {[%clk 0:00:18]} 43. Qxe8+ {[%clk 0:00:24]}  Kh7 {[%clk 0:00:18]} 44. Be5 {[%clk 0:00:20]}  Qg6 {[%clk 0:00:16]} 45. Qe7 {[%clk 0:00:20]}  Qh5+ {[%clk 0:00:16]} 46. Kg2 {[%clk 0:00:18]}  Qxe5 {[%clk 0:00:16]} 47. Qd7 {[%clk 0:00:18]}  Qe4+ {[%clk 0:00:16]} 48. f3 {[%clk 0:00:19]}  Qe2+ {[%clk 0:00:16]} 49. Kh3 {[%clk 0:00:19]}  Qe5 {[%clk 0:00:16]} 50. g4 {[%clk 0:00:16]}  Qf6 {[%clk 0:00:15]} 51. Qc6 {[%clk 0:00:16]}  Qe5 {[%clk 0:00:14]} 52. Kg2 {[%clk 0:00:15]}  Qf6 {[%clk 0:00:14]} 53. Qe4+ {[%clk 0:00:15]}  Qg6 {[%clk 0:00:13]} 54. Qd5 {[%clk 0:00:15]}  d3 {[%clk 0:00:13]} 55. Kf2 {[%clk 0:00:14]}  d2 {[%clk 0:00:13]} 56. Ke2 {[%clk 0:00:14]}  Qc2 {[%clk 0:00:13]} 57. Qxd2 {[%clk 0:00:12]}  Qxd2+ {[%clk 0:00:13]} 58. Kxd2 {[%clk 0:00:13]}  Kg6 {[%clk 0:00:13]} 59. f4 {[%clk 0:00:13]}  Bd4 {[%clk 0:00:13]} 60. Kd3 {[%clk 0:00:13]}  Kf6 {[%clk 0:00:12]} 61. Ke4 {[%clk 0:00:11]}  Ke6 {[%clk 0:00:12]} 62. g5 {[%clk 0:00:09]}  hxg5 {[%clk 0:00:12]} 63. fxg5 {[%clk 0:00:10]}  Kd6 {[%clk 0:00:12]} 64. g6 {[%clk 0:00:09]}  Kc6 {[%clk 0:00:12]} 65. Kd3 {[%clk 0:00:08]}  Kb5 {[%clk 0:00:12]} 0-1


[Site "https://www.chess.com"]

[Event "Titled Tuesday Blitz January 18 2022"]
[White "Bilan, Danila"]
[Black "Bryakin, Mikhail"]
[WhiteFideId "24161918"]
[BlackFideId "4165314"]
[WhiteElo "2164"]
[BlackElo "2421"]
[Result "1/2-1/2"]
[Round "06"]
[TimeControl "180+1"]
[Date "2022.01.18"]
[WhiteClock "0:02:17"]
[BlackClock "0:02:17"]

1. d4 {[%clk 0:03:00]}  Nf6 {[%clk 0:02:54]} 2. Nf3 {[%clk 0:02:59]}  g6 {[%clk 0:02:54]} 3. Bg5 {[%clk 0:02:59]}  Bg7 {[%clk 0:02:53]} 4. c3 {[%clk 0:02:59]}  d6 {[%clk 0:02:35]} 5. Nbd2 {[%clk 0:02:58]}  O-O {[%clk 0:02:33]} 6. e4 {[%clk 0:02:57]}  h6 {[%clk 0:02:31]} 7. Bh4 {[%clk 0:02:56]}  g5 {[%clk 0:02:28]} 8. Bg3 {[%clk 0:02:56]}  Nh5 {[%clk 0:02:27]} 9. Bc4 {[%clk 0:02:48]}  Nxg3 {[%clk 0:02:27]} 10. hxg3 {[%clk 0:02:47]}  e6 {[%clk 0:02:28]} 11. Qe2 {[%clk 0:02:44]}  b6 {[%clk 0:02:28]} 12. e5 {[%clk 0:02:40]}  Nd7 {[%clk 0:02:26]} 13. O-O-O {[%clk 0:02:28]}  Bb7 {[%clk 0:02:23]} 14. Rh5 {[%clk 0:02:17]}  Bd5 {[%clk 0:02:17]} 1/2-1/2


[Site "https://www.chess.com"]

[Event "Titled Tuesday Blitz January 18 2022"]
[White "Brodowski, Piotr"]
[Black "Bauer, Thomas"]
[WhiteFideId "1124480"]
[BlackFideId "1639293"]
[WhiteElo "2422"]
[BlackElo "2220"]
[Result "0-1"]
[Round "06"]
[TimeControl "180+1"]
[Date "2022.01.18"]
[WhiteClock "0:00:03"]
[BlackClock "0:00:35"]

1. c4 {[%clk 0:03:00]}  g6 {[%clk 0:02:59]} 2. h4 {[%clk 0:02:57]}  Bg7 {[%clk 0:03:00]} 3. h5 {[%clk 0:02:56]}  c5 {[%clk 0:02:57]} 4. Nc3 {[%clk 0:02:56]}  Nc6 {[%clk 0:02:57]} 5. d3 {[%clk 0:02:54]}  d6 {[%clk 0:02:45]} 6. g3 {[%clk 0:02:52]}  Bg4 {[%clk 0:02:43]} 7. h6 {[%clk 0:02:52]}  Bxc3+ {[%clk 0:02:42]} 8. bxc3 {[%clk 0:02:51]}  Qa5 {[%clk 0:02:42]} 9. Bd2 {[%clk 0:02:48]}  Ne5 {[%clk 0:02:40]} 10. Qc2 {[%clk 0:02:44]}  Nf6 {[%clk 0:02:38]} 11. Bg2 {[%clk 0:02:40]}  O-O {[%clk 0:02:30]} 12. f3 {[%clk 0:01:59]}  Bd7 {[%clk 0:02:28]} 13. f4 {[%clk 0:01:50]}  Neg4 {[%clk 0:02:19]} 14. Nf3 {[%clk 0:01:47]}  b5 {[%clk 0:02:14]} 15. cxb5 {[%clk 0:01:43]}  Qxb5 {[%clk 0:02:06]} 16. c4 {[%clk 0:01:40]}  Qa6 {[%clk 0:02:01]} 17. O-O {[%clk 0:01:30]}  Nxh6 {[%clk 0:01:57]} 18. Bc3 {[%clk 0:01:30]}  Nhg4 {[%clk 0:01:56]} 19. Qd2 {[%clk 0:01:29]}  Rab8 {[%clk 0:01:53]} 20. Ng5 {[%clk 0:01:26]}  Bc6 {[%clk 0:01:49]} 21. e4 {[%clk 0:01:26]}  Ba8 {[%clk 0:01:45]} 22. Qe2 {[%clk 0:01:06]}  Qc6 {[%clk 0:01:36]} 23. Bf3 {[%clk 0:01:03]}  Qc8 {[%clk 0:01:31]} 24. e5 {[%clk 0:00:51]}  Bxf3 {[%clk 0:01:28]} 25. Qxf3 {[%clk 0:00:50]}  Nh5 {[%clk 0:01:23]} 26. e6 {[%clk 0:00:43]}  f5 {[%clk 0:01:05]} 27. Kg2 {[%clk 0:00:40]}  h6 {[%clk 0:01:02]} 28. Rh1 {[%clk 0:00:05]}  hxg5 {[%clk 0:01:00]} 29. Rxh5 {[%clk 0:00:05]}  gxh5 {[%clk 0:00:54]} 30. Re1 {[%clk 0:00:05]}  Qb7 {[%clk 0:00:52]} 31. fxg5 {[%clk 0:00:04]}  Qxf3+ {[%clk 0:00:43]} 32. Kxf3 {[%clk 0:00:05]}  Kh7 {[%clk 0:00:44]} 33. Kf4 {[%clk 0:00:05]}  Kg6 {[%clk 0:00:43]} 34. Rh1 {[%clk 0:00:04]}  Rbd8 {[%clk 0:00:37]} 35. Rb1 {[%clk 0:00:03]}  Rb8 {[%clk 0:00:38]} 36. Rh1 {[%clk 0:00:03]}  Rfd8 {[%clk 0:00:38]} 37. Rd1 {[%clk 0:00:01]}  d5 {[%clk 0:00:38]} 38. Be5 {[%clk 0:00:02]}  Nxe5 {[%clk 0:00:36]} 39. Kxe5 {[%clk 0:00:03]}  dxc4 {[%clk 0:00:36]} 40. Rf1 {[%clk 0:00:04]}  Rxd3 {[%clk 0:00:34]} 41. Rxf5 {[%clk 0:00:02]}  Rd5+ {[%clk 0:00:34]} 42. Kxd5 {[%clk 0:00:02]}  Kxf5 {[%clk 0:00:35]} 43. Kxc4 {[%clk 0:00:03]} 0-1


[Site "https://www.chess.com"]

[Event "Titled Tuesday Blitz January 18 2022"]
[White "Brunner, Nicolas"]
[Black "Nenezic, Marko"]
[WhiteFideId "620246"]
[BlackFideId "912123"]
[WhiteElo "2372"]
[BlackElo "2484"]
[Result "1/2-1/2"]
[Round "06"]
[TimeControl "180+1"]
[Date "2022.01.18"]
[WhiteClock "0:00:12"]
[BlackClock "0:00:08"]

1. d4 {[%clk 0:03:00]}  Nf6 {[%clk 0:02:59]} 2. c4 {[%clk 0:03:00]}  g6 {[%clk 0:02:59]} 3. Nf3 {[%clk 0:03:00]}  Bg7 {[%clk 0:03:00]} 4. Nc3 {[%clk 0:02:59]}  O-O {[%clk 0:03:01]} 5. e4 {[%clk 0:02:59]}  d6 {[%clk 0:03:01]} 6. Be2 {[%clk 0:03:00]}  Nbd7 {[%clk 0:03:01]} 7. O-O {[%clk 0:03:00]}  e5 {[%clk 0:03:02]} 8. Qc2 {[%clk 0:02:59]}  Qe8 {[%clk 0:02:58]} 9. Rd1 {[%clk 0:02:54]}  exd4 {[%clk 0:02:58]} 10. Nxd4 {[%clk 0:02:53]}  Nc5 {[%clk 0:02:58]} 11. f3 {[%clk 0:02:53]}  Qe7 {[%clk 0:02:56]} 12. Be3 {[%clk 0:02:42]}  c6 {[%clk 0:02:54]} 13. Bf2 {[%clk 0:02:39]}  a5 {[%clk 0:02:54]} 14. b3 {[%clk 0:02:36]}  Nh5 {[%clk 0:02:54]} 15. g3 {[%clk 0:02:30]}  Bh3 {[%clk 0:02:53]} 16. Rd2 {[%clk 0:02:23]}  Bh6 {[%clk 0:02:50]} 17. Rdd1 {[%clk 0:02:21]}  Rae8 {[%clk 0:02:48]} 18. a3 {[%clk 0:02:18]}  f5 {[%clk 0:02:16]} 19. exf5 {[%clk 0:02:18]}  Be3 {[%clk 0:02:16]} 20. Bf1 {[%clk 0:02:07]}  Bxf1 {[%clk 0:02:16]} 21. Rxf1 {[%clk 0:02:06]}  gxf5 {[%clk 0:02:14]} 22. Nxf5 {[%clk 0:02:02]}  Bxf2+ {[%clk 0:02:14]} 23. Rxf2 {[%clk 0:02:02]}  Qf6 {[%clk 0:02:04]} 24. Nh4 {[%clk 0:01:51]}  Re3 {[%clk 0:02:05]} 25. Rc1 {[%clk 0:01:48]}  Nd3 {[%clk 0:01:56]} 26. Qd2 {[%clk 0:01:31]}  Rfe8 {[%clk 0:01:31]} 27. Ne4 {[%clk 0:01:28]}  R8xe4 {[%clk 0:01:27]} 28. fxe4 {[%clk 0:01:28]}  Qxf2+ {[%clk 0:01:27]} 29. Qxf2 {[%clk 0:01:28]}  Nxf2 {[%clk 0:01:28]} 30. Kxf2 {[%clk 0:01:28]}  Rxb3 {[%clk 0:01:29]} 31. Nf5 {[%clk 0:01:24]}  Nf6 {[%clk 0:01:29]} 32. Nxd6 {[%clk 0:01:23]}  Ng4+ {[%clk 0:01:22]} 33. Kg1 {[%clk 0:01:23]}  Rb2 {[%clk 0:01:14]} 34. Rc3 {[%clk 0:01:08]}  Nxh2 {[%clk 0:00:54]} 35. Nxb7 {[%clk 0:01:06]}  Ng4 {[%clk 0:00:47]} 36. Nxa5 {[%clk 0:01:04]}  c5 {[%clk 0:00:47]} 37. Nb3 {[%clk 0:00:58]}  Kg7 {[%clk 0:00:38]} 38. Nxc5 {[%clk 0:00:58]}  Kf6 {[%clk 0:00:39]} 39. a4 {[%clk 0:00:54]}  Ra2 {[%clk 0:00:39]} 40. Rf3+ {[%clk 0:00:44]}  Ke5 {[%clk 0:00:34]} 41. Rf7 {[%clk 0:00:42]}  h5 {[%clk 0:00:29]} 42. Rh7 {[%clk 0:00:39]}  Kd4 {[%clk 0:00:29]} 43. Rxh5 {[%clk 0:00:37]}  Ke3 {[%clk 0:00:24]} 44. Rf5 {[%clk 0:00:27]}  Nh2 {[%clk 0:00:21]} 45. e5 {[%clk 0:00:23]}  Nf3+ {[%clk 0:00:20]} 46. Rxf3+ {[%clk 0:00:23]}  Kxf3 {[%clk 0:00:21]} 47. e6 {[%clk 0:00:23]}  Kxg3 {[%clk 0:00:17]} 48. Kf1 {[%clk 0:00:23]}  Kf3 {[%clk 0:00:18]} 49. Ke1 {[%clk 0:00:23]}  Re2+ {[%clk 0:00:14]} 50. Kd1 {[%clk 0:00:22]}  Re5 {[%clk 0:00:15]} 51. Nb3 {[%clk 0:00:17]}  Ke4 {[%clk 0:00:12]} 52. Kc2 {[%clk 0:00:17]}  Ke3 {[%clk 0:00:10]} 53. Kc3 {[%clk 0:00:16]}  Rxe6 {[%clk 0:00:10]} 54. c5 {[%clk 0:00:16]}  Re8 {[%clk 0:00:09]} 55. Kc4 {[%clk 0:00:16]}  Ke4 {[%clk 0:00:08]} 56. a5 {[%clk 0:00:16]}  Ke5 {[%clk 0:00:08]} 57. a6 {[%clk 0:00:14]}  Ra8 {[%clk 0:00:08]} 58. Kb5 {[%clk 0:00:13]}  Kd5 {[%clk 0:00:08]} 59. Na5 {[%clk 0:00:13]}  Rxa6 {[%clk 0:00:08]} 60. Kxa6 {[%clk 0:00:12]}  Kxc5 {[%clk 0:00:08]} 1/2-1/2


[Site "https://www.chess.com"]

[Event "Titled Tuesday Blitz January 18 2022"]
[White "Chernomordik, Pavel"]
[Black "Omelja, Artem"]
[WhiteFideId "2804530"]
[BlackFideId "14119846"]
[WhiteElo "2249"]
[BlackElo "2418"]
[Result "1/2-1/2"]
[Round "06"]
[TimeControl "180+1"]
[Date "2022.01.18"]
[WhiteClock "0:00:09"]
[BlackClock "0:00:04"]

1. e4 {[%clk 0:03:00]}  c5 {[%clk 0:02:58]} 2. Nc3 {[%clk 0:03:00]}  Nc6 {[%clk 0:02:56]} 3. Bb5 {[%clk 0:02:59]}  g6 {[%clk 0:02:54]} 4. Bxc6 {[%clk 0:02:59]}  dxc6 {[%clk 0:02:55]} 5. f4 {[%clk 0:03:00]}  Bg7 {[%clk 0:02:54]} 6. Nf3 {[%clk 0:03:00]}  Nf6 {[%clk 0:02:53]} 7. Qe2 {[%clk 0:02:59]}  O-O {[%clk 0:02:53]} 8. d3 {[%clk 0:02:58]}  b6 {[%clk 0:02:51]} 9. O-O {[%clk 0:02:57]}  Nd7 {[%clk 0:02:40]} 10. a4 {[%clk 0:02:53]}  a5 {[%clk 0:02:39]} 11. e5 {[%clk 0:02:48]}  Nb8 {[%clk 0:02:29]} 12. Ng5 {[%clk 0:02:44]}  h6 {[%clk 0:02:26]} 13. Nge4 {[%clk 0:02:41]}  Na6 {[%clk 0:02:02]} 14. g4 {[%clk 0:02:32]}  Nb4 {[%clk 0:01:51]} 15. f5 {[%clk 0:02:22]}  Nd5 {[%clk 0:01:49]} 16. e6 {[%clk 0:01:41]}  fxe6 {[%clk 0:01:31]} 17. fxg6 {[%clk 0:01:40]}  Qe8 {[%clk 0:01:30]} 18. Rxf8+ {[%clk 0:01:33]}  Bxf8 {[%clk 0:01:26]} 19. Bd2 {[%clk 0:01:23]}  Qxg6 {[%clk 0:01:23]} 20. Rf1 {[%clk 0:01:23]}  e5 {[%clk 0:01:13]} 21. h3 {[%clk 0:01:19]}  Bg7 {[%clk 0:01:12]} 22. Ng3 {[%clk 0:01:17]}  Be6 {[%clk 0:00:27]} 23. Nf5 {[%clk 0:01:10]}  Bxf5 {[%clk 0:00:26]} 24. Rxf5 {[%clk 0:01:04]}  e6 {[%clk 0:00:26]} 25. Rf3 {[%clk 0:01:01]}  Rf8 {[%clk 0:00:20]} 26. Rxf8+ {[%clk 0:00:52]}  Kxf8 {[%clk 0:00:20]} 27. Ne4 {[%clk 0:00:47]}  Ke7 {[%clk 0:00:20]} 28. Qf3 {[%clk 0:00:32]}  Kd7 {[%clk 0:00:13]} 29. Kg2 {[%clk 0:00:25]}  Nf6 {[%clk 0:00:08]} 30. c4 {[%clk 0:00:20]}  Nxe4 {[%clk 0:00:08]} 31. Qxe4 {[%clk 0:00:19]}  Qxe4+ {[%clk 0:00:05]} 32. dxe4 {[%clk 0:00:19]}  Ke7 {[%clk 0:00:06]} 33. Kf3 {[%clk 0:00:16]}  Kf7 {[%clk 0:00:04]} 34. h4 {[%clk 0:00:09]} 1/2-1/2


[Site "https://www.chess.com"]

[Event "Titled Tuesday Blitz January 18 2022"]
[White "Corrales Jimenez, Fidel"]
[Black "Hardaway, Brewington"]
[WhiteFideId "3506690"]
[BlackFideId "30941849"]
[WhiteElo "2541"]
[BlackElo "1768"]
[Result "1-0"]
[Round "06"]
[TimeControl "180+1"]
[Date "2022.01.18"]
[WhiteClock "0:01:14"]
[BlackClock "0:00:52"]

1. e4 {[%clk 0:02:51]}  c5 {[%clk 0:02:59]} 2. Nf3 {[%clk 0:02:50]}  g6 {[%clk 0:02:58]} 3. d4 {[%clk 0:02:50]}  cxd4 {[%clk 0:02:59]} 4. Nxd4 {[%clk 0:02:51]}  Bg7 {[%clk 0:02:59]} 5. c4 {[%clk 0:02:50]}  Nc6 {[%clk 0:03:00]} 6. Be3 {[%clk 0:02:50]}  d6 {[%clk 0:03:00]} 7. Nc3 {[%clk 0:02:50]}  Nf6 {[%clk 0:03:01]} 8. Be2 {[%clk 0:02:50]}  O-O {[%clk 0:03:00]} 9. O-O {[%clk 0:02:49]}  Bd7 {[%clk 0:02:58]} 10. Qd2 {[%clk 0:02:49]}  Rc8 {[%clk 0:02:56]} 11. Rae1 {[%clk 0:02:46]}  a6 {[%clk 0:02:49]} 12. f4 {[%clk 0:02:46]}  Ng4 {[%clk 0:02:46]} 13. Bxg4 {[%clk 0:02:46]}  Bxg4 {[%clk 0:02:47]} 14. f5 {[%clk 0:02:45]}  Ne5 {[%clk 0:02:23]} 15. b3 {[%clk 0:02:44]}  gxf5 {[%clk 0:01:58]} 16. exf5 {[%clk 0:02:44]}  e6 {[%clk 0:01:58]} 17. h3 {[%clk 0:02:19]}  Bxf5 {[%clk 0:01:55]} 18. Nxf5 {[%clk 0:02:19]}  exf5 {[%clk 0:01:56]} 19. Rxf5 {[%clk 0:02:19]}  b5 {[%clk 0:01:48]} 20. Nd5 {[%clk 0:02:17]}  bxc4 {[%clk 0:01:38]} 21. Bh6 {[%clk 0:02:14]}  Ng6 {[%clk 0:01:35]} 22. Bxg7 {[%clk 0:02:13]}  Kxg7 {[%clk 0:01:35]} 23. Qd4+ {[%clk 0:02:13]}  f6 {[%clk 0:01:35]} 24. bxc4 {[%clk 0:02:09]}  Ne5 {[%clk 0:01:25]} 25. Nf4 {[%clk 0:02:04]}  Qd7 {[%clk 0:01:22]} 26. Nh5+ {[%clk 0:02:02]}  Kg6 {[%clk 0:01:15]} 27. Rexe5 {[%clk 0:01:46]}  Qxf5 {[%clk 0:01:00]} 28. Rxf5 {[%clk 0:01:44]}  Kxf5 {[%clk 0:01:01]} 29. Qd5+ {[%clk 0:01:14]}  Kg6 {[%clk 0:00:52]} 30. Nf4+ {[%clk 0:01:14]}  Kg7 {[%clk 0:00:51]} 31. Ne6+ {[%clk 0:01:14]}  Kf7 {[%clk 0:00:51]} 32. Nxf8+ {[%clk 0:01:14]}  Kxf8 {[%clk 0:00:52]} 1-0


[Site "https://www.chess.com"]